Cogmind - Beta 12 @@@ ROGUE MODE // 2023.03.16 @ 12:05:07 Player: 3.14 Result: Self-destructed Performance ------------- Evolutions (6) 3000 Regions Visited (17) 3400 Robots Destroyed (191) 955 Value Destroyed (4982) 4982 Prototype IDs (26) 520 Alien Tech Used (0) 0 Bonus (50) 50 TOTAL SCORE: 12907 Bonus ------- High Alert Combat Kills 181 Friendly Fire -131 Cogmind --------- Core Integrity 1150/1150 Matter 300/300 Energy 144/150 System Corruption 0% Temperature Cool (0) Movement Flying (28) Location -4/Factory Parts ------- > --- POWER (1) -------- Light Angular Momentum Engine > --- PROPULSION (5) --- Biomechanical Wings Biomechanical Wings Biomechanical Wings Biomechanical Wings Biomechanical Wings > --- UTILITY (11) ----- Long-range Sensor Array Advanced Signal Interpreter Advanced Transmission Jammer Experimental Propulsion Shielding Experimental Utility Shielding Improved Powered Armor Advanced Hacking Suite Advanced Hacking Suite Advanced System Shield Authchip [Processor] > --- WEAPON (2) ------- Great Axe > --- INVENTORY (5) ---- Micro Fission Core Advanced ECM Suite Authchip [Propulsion] Mini Smartbomb Launcher Improved Datajack Peak State ------------ > --- POWER ------------ Light Angular Momentum Engine > --- PROPULSION ------- Biomechanical Wings Biomechanical Wings Biomechanical Wings Biomechanical Wings Biomechanical Wings > --- UTILITY ---------- Long-range Sensor Array Advanced Signal Interpreter Advanced Transmission Jammer Experimental Propulsion Shielding Experimental Utility Shielding Improved Powered Armor Advanced Hacking Suite Advanced Hacking Suite Advanced Hacking Suite Advanced System Shield Authchip [Processor] > --- WEAPON ----------- Mini Smartbomb Launcher > --- INVENTORY -------- Micro Fission Core Advanced ECM Suite Authchip [Propulsion] Improved Datajack Great Axe [Rating: 109] Favorites ----------- Power Micro Nuclear Core Engine Heavy Ion Engine Power Core Micro Nuclear Core Propulsion Light Treads Treads Light Treads Leg Aluminum Leg Flight Unit Biomechanical Wings Utility Advanced Hacking Suite Device Advanced Sensor Array Storage Large Storage Unit Processor Advanced Signal Interpreter Hackware Advanced Hacking Suite Protection Improved Utility Shielding Weapon Great Axe Energy Gun Beam Rifle Energy Cannon Beam Cannon Ballistic Gun Improved Assault Rifle Ballistic Cannon Light Cannon Launcher Mini Smartbomb Launcher Slashing Weapon Great Axe Special Melee Weapon Improved Datajack Build | -11 -10 -9 -8 -7 -7 -7 -6 -6 -6 -5 -5 -5 -5 -5 -5 -4 -4 ------- Run | Jun Mat Mat Mat Fac Was Fac Fac Low Low Fac Was Fac Upp Upp War Pro Fac Slots Evolved 12 | . . 2 2 2 . . 2 . . 2 . . . . . . 2 Power . | . . . . . . . . . . . . . . . . . . Propulsion 3 | . . 1 1 . . . . . . 1 . . . . . . . Utility 9 | . . 1 1 2 . . 2 . . 1 . . . . . . 2 Weapon . | . . . . . . . . . . . . . . . . . . Parts Attached 220 | . 18 42 22 37 . 10 24 2 . 31 1 13 1 5 . 2 12 Power 11 | . 1 2 1 . . 2 1 . . . . 2 . . . . 2 Engine 6 | . 1 2 1 . . 1 . . . . . . . . . . 1 Core 5 | . . . . . . 1 1 . . . . 2 . . . . 1 Reactor . | . . . . . . . . . . . . . . . . . . Propulsion 54 | . 3 22 7 8 . 2 1 . . 6 . 3 . . . . 2 Treads 27 | . . 22 5 . . . . . . . . . . . . . . Leg 5 | . 3 . 2 . . . . . . . . . . . . . . Wheel . | . . . . . . . . . . . . . . . . . . Hover . | . . . . . . . . . . . . . . . . . . Flight 22 | . . . . 8 . 2 1 . . 6 . 3 . . . . 2 Utility 97 | . 3 6 8 26 . 4 17 2 . 18 1 8 . . . . 4 Device 28 | . . 1 3 8 . 2 4 1 . 4 . 3 . . . . 2 Storage 3 | . 2 1 . . . . . . . . . . . . . . . Processor 6 | . 1 . 1 2 . 1 . . . . 1 . . . . . . Hackware 34 | . . . . 14 . 1 9 . . 7 . 2 . . . . 1 Protection 26 | . . 4 4 2 . . 4 1 . 7 . 3 . . . . 1 Artifact . | . . . . . . . . . . . . . . . . . . Weapon 58 | . 11 12 6 3 . 2 5 . . 7 . . 1 5 . 2 4 Energy Gun 6 | . . 6 . . . . . . . . . . . . . . . Energy Cannon 2 | . 1 1 . . . . . . . . . . . . . . . Ballistic Gun 14 | . 5 4 5 . . . . . . . . . . . . . . Ballistic Cannon 5 | . 5 . . . . . . . . . . . . . . . . Launcher 12 | . . . 1 . . . 2 . . 3 . . 1 2 . 1 2 Special Weapon . | . . . . . . . . . . . . . . . . . . Impact Weapon . | . . . . . . . . . . . . . . . . . . Slashing Weapon 14 | . . 1 . 1 . 1 3 . . 2 . . . 3 . 1 2 Piercing Weapon . | . . . . . . . . . . . . . . . . . . Special Melee Weapon 5 | . . . . 2 . 1 . . . 2 . . . . . . . Unidentified Prototypes 3 | . . 1 . . . 1 . . . 1 . . . . . . . Corrupted Parts 1 | . . . . . . 1 . . . . . . . . . . . System Corruption 5 | . . . . . . 5 . . . . . . . . . . . Parts Lost 8 | . . . 2 . . . 3 . . 1 . 1 . . . . 1 Power 2 | . . . . . . . 1 . . . . 1 . . . . . Propulsion 1 | . . . 1 . . . . . . . . . . . . . . Utility 3 | . . . 1 . . . 1 . . . . . . . . . 1 Weapon 2 | . . . . . . . 1 . . 1 . . . . . . . Highest Loss Streak 2 | . . . 2 . . . 1 . . 1 . 1 . . . . 1 To Critical Strikes . | . . . . . . . . . . . . . . . . . . Average Slot Usage (%) 97 | . 93 99 99 98 100 99 97 93 93 93 100 97 100 100 100 100 92 Engine 5 | . 14 10 9 7 7 1 . . . . . . . . . . 3 Core 2 | . . . . . . 4 5 6 6 5 5 5 5 5 5 5 . Treads 9 | . . 32 28 . . . . . . . . . . . . . . Leg 3 | . 28 . 7 . . . . . . . . . . . . . . Flight 16 | . . . . 29 30 30 26 26 26 27 29 28 29 29 29 29 25 Device 6 | . . 9 12 6 . 6 5 6 6 4 . 4 5 5 5 5 9 Storage 4 | . 14 11 9 . . . . . . . . . . . . . . Processor 5 | . 7 6 1 7 7 7 6 6 6 5 11 5 5 5 5 5 5 Hackware 15 | . . . . 28 30 30 26 26 26 24 23 23 23 23 23 23 24 Protection 8 | . . 6 12 . 7 . 12 13 13 15 17 15 17 17 17 17 15 Energy Gun 1 | . . 5 . . . . . . . . . . . . . . . Energy Cannon 1 | . 3 7 . . . . . . . . . . . . . . . Ballistic Gun 5 | . 16 9 18 . . . . . . . . . . . . . . Slashing Weapon 3 | . . . . 6 7 7 5 6 6 4 5 5 3 2 5 3 4 Special Melee Weapon 2 | . . . . 6 7 7 4 . . 1 5 5 5 5 5 5 1 Naked Turns . | . . . . . . . . . . . . . . . . . . Heaviest Build 55 | 12 27 40 55 39 21 12 16 15 15 29 25 26 26 26 26 26 30 Greatest Support 80 | 20 20 60 80 60 23 23 22 22 22 29 29 30 30 30 30 30 30 Greatest Overweight (x) 11 | . 1 11 1 . . . . . . . . . . . . . . Average Overweight (x) . | . . . . . . . . . . . . . . . . . . Largest Inventory Capacity 15 | . 15 15 15 15 5 5 5 5 5 5 5 5 5 5 5 5 5 Average Capacity 8 | . 10 15 15 5 5 5 5 5 5 5 5 5 5 5 5 5 5 Most Carried 15 | . 12 15 15 15 5 5 5 5 5 5 5 5 5 5 5 5 5 Average Carried 8 | . 9 14 14 4 4 4 4 5 5 4 5 4 5 5 5 5 4 Final Capacity 15 | 8 15 15 15 5 5 5 5 5 5 5 5 5 5 5 5 5 5 Final Carried 15 | 6 12 15 15 4 5 5 5 5 5 5 5 5 5 5 5 5 5 Class Distribution -------------------- 39% | Hacker-Sprinter 23% | Mutant 16% | Machinist-Sprinter 15% | Scavenger-Mutant Dominant Class ---------------- Mutant | -10/Materials Scavenger-Mutant | -9/Materials Mutant | -8/Materials Hacker-Sprinter | -7/Factory Hacker-Sprinter | -7/Waste Hacker-Sprinter | -7/Factory Hacker-Sprinter | -6/Factory Hacker-Sprinter | -6/Lower Caves Hacker-Sprinter | -6/Lower Caves Machinist-Sprinter | -5/Factory Machinist-Sprinter | -5/Waste Machinist-Sprinter | -5/Factory Machinist-Sprinter | -5/Upper Caves Machinist-Sprinter | -5/Upper Caves Machinist-Sprinter | -5/Warlord Machinist-Sprinter | -4/Proximity Caves Machinist-Sprinter | -4/Factory Resources | -11 -10 -9 -8 -7 -7 -7 -6 -6 -6 -5 -5 -5 -5 -5 -5 -4 -4 ----------- Run | Jun Mat Mat Mat Fac Was Fac Fac Low Low Fac Was Fac Upp Upp War Pro Fac Matter Collected 4162 | 200 407 610 529 256 175 140 315 40 . 480 . 105 238 215 . 105 347 Remotely . | . . . . . . . . . . . . . . . . . . Salvage Created 6456 | . 636 1926 826 261 . 345 366 . . 687 . 155 343 257 . 174 480 Parts 391 | . 36 126 52 17 . 26 35 . . 36 . 5 12 20 . 7 19 Haulers Intercepted 10 | . 2 6 1 . . 1 . . . . . . . . . . . Recyclers Shooed 10 | . 4 1 . 1 . . . . . 2 . . . . . . 2 Parts Field Recycled . | . . . . . . . . . . . . . . . . . . Retrieved Matter . | . . . . . . . . . . . . . . . . . . Parts Self-Destructed 23 | . . . . . . . . . . . . . 6 16 . 1 . Prevented . | . . . . . . . . . . . . . . . . . . Kills | -11 -10 -9 -8 -7 -7 -7 -6 -6 -6 -5 -5 -5 -5 -5 -5 -4 -4 ------- Run | Jun Mat Mat Mat Fac Was Fac Fac Low Low Fac Was Fac Upp Upp War Pro Fac Combat Hostiles Destroyed 123 | . 12 37 15 . . . 7 . . 14 . . 10 15 . 4 9 Guns 36 | . 5 18 13 . . . . . . . . . . . . . . Cannons 23 | . 7 16 . . . . . . . . . . . . . . . AOE 63 | . . 2 2 . . . 7 . . 14 . . 10 15 . 4 9 Classes Destroyed 13 | . 6 4 . 1 . . 1 . . . . . . . . 1 . Worker 8 | . . 1 . 1 . 1 2 . . 3 . . . . . . . Builder 8 | . 1 . . 1 . 1 2 . . 3 . . . . . . . Tunneler 1 | . . . . . . . 1 . . . . . . . . . . Hauler 10 | . 2 6 1 . . 1 . . . . . . . . . . . Recycler 16 | . 2 2 1 1 . 2 1 . . 3 . 1 . . . . 3 Mechanic 2 | . . . . 1 . 1 . . . . . . . . . . . Operator 8 | . 2 2 1 1 . . 1 . . 1 . . . . . . . Watcher 15 | . . 3 2 2 . 2 4 . . 2 . . . . . . . Swarmer 61 | . 3 11 3 . . . 7 . . 14 . . . 14 . . 9 Grunt 48 | . 9 15 9 . . . . . . . . . 10 1 . 4 . Duelist 1 | . . 1 . . . . . . . . . . . . . . . Sentry 13 | . . 10 3 . . . . . . . . . . . . . . Decomposer 2 | . . . . . . . . . . . . . . 2 . . . Samaritan 2 | . . . . . . . . . . . . . . . . 2 . Best Kill Streak 12 | . 3 5 4 2 . 3 6 . . 10 . 1 10 9 . 4 12 Combat Bots Only 10 | . 3 4 4 . . . 4 . . 9 . . 10 9 . 4 9 Max Kills in Single Turn 5 | . 2 2 1 1 . 1 4 . . 5 . 1 3 4 . 2 3 Gunslinging 1 | . 1 . . . . . . . . . . . . . . . . Exploded 4 | . . 1 1 . . . 2 . . 4 . . 3 4 . 2 3 Melee . | . . . . . . . . . . . . . . . . . . Uniques/NPCs Destroyed . | . . . . . . . . . . . . . . . . . . Combat | -11 -10 -9 -8 -7 -7 -7 -6 -6 -6 -5 -5 -5 -5 -5 -5 -4 -4 -------- Run | Jun Mat Mat Mat Fac Was Fac Fac Low Low Fac Was Fac Upp Upp War Pro Fac Damage Taken 3546 | . 260 1009 1141 27 . 51 313 . . 233 . 306 16 16 . 160 14 Core 498 | . 82 180 53 10 . 18 63 . . 52 . 40 . . . . . Absorbed by Shields . | . . . . . . . . . . . . . . . . . . Redirected to Shielding 273 | . . 71 . . . . 88 . . 88 . . . 14 . . 12 Regen/Repaired (Parts) 328 | . . 43 55 . . 19 25 . . 86 . 100 . . . . . Core Remaining (%) 84 | 100 67 55 90 . . 96 . . 92 . . . . . . 90 . Volleys Fired 253 | . 51 102 57 . . . 9 . . 7 . . 9 6 . 8 4 Largest 2 | . 2 2 2 . . . 1 . . 1 . . 1 1 . 1 1 Hottest 116 | . 80 116 56 . . . 30 . . 80 . . 80 80 . 80 80 Shots Fired 455 | . 102 198 112 . . . 9 . . 7 . . 9 6 . 8 4 Gun 314 | . 72 132 110 . . . . . . . . . . . . . . Cannon 96 | . 30 66 . . . . . . . . . . . . . . . Launcher 45 | . . . 2 . . . 9 . . 7 . . 9 6 . 8 4 Special . | . . . . . . . . . . . . . . . . . . Kinetic 291 | . 98 83 110 . . . . . . . . . . . . . . Thermal 95 | . 4 91 . . . . . . . . . . . . . . . Explosive 45 | . . . 2 . . . 9 . . 7 . . 9 6 . 8 4 Electromagnetic 24 | . . 24 . . . . . . . . . . . . . . . Robot Hit Streak 30 | . 11 30 16 . . . . . . 6 . . . 7 . . 8 Robot Miss Streak 5 | . 3 2 5 . . . 1 . . . . . . . . . . Penetration Max 1 | . . . 1 . . . . . . . . . . . . . . Secondary Targets 3 | . 2 . 1 . . . . . . . . . . . . . . Max Gunslinging Chain 1 | . 1 . 1 . . . . . . . . . . . . . . Shots Hit Robots 368 | . 71 150 71 13 . 9 11 . . 27 . 2 . 3 . 4 7 Core Hits 263 | . 35 66 39 4 . 7 21 . . 23 . . 22 17 . 16 13 Critical Kills 1 | . . 1 . . . . . . . . . . . . . . . Critical Parts Destroyed 1 | . . . 1 . . . . . . . . . . . . . . Critical Strikes 7 | . . 4 1 . . . . . . 2 . . . . . . . Burn 2 | . . 2 . . . . . . . . . . . . . . . Meltdown 1 | . . 1 . . . . . . . . . . . . . . . Destroy 1 | . . . 1 . . . . . . . . . . . . . . Corrupt 1 | . . 1 . . . . . . . . . . . . . . . Sever 2 | . . . . . . . . . . 2 . . . . . . . Melee Attacks 319 | . . 1 . 44 . 39 82 14 . 89 . 28 . 3 . 10 9 Impact . | . . . . . . . . . . . . . . . . . . Slashing 317 | . . 1 . 43 . 39 82 14 . 88 . 28 . 3 . 10 9 Piercing . | . . . . . . . . . . . . . . . . . . Sneak Attacks 38 | . . . . 9 . 6 4 . . 9 . 1 . 2 . 4 3 Combat Hostiles . | . . . . . . . . . . . . . . . . . . Follow-up Attacks . | . . . . . . . . . . . . . . . . . . Damage Inflicted 16839 | . 929 2608 1557 883 . 647 1594 . . 3108 . 156 1255 1406 . 1419 1277 Guns 3364 | . 499 1502 1363 . . . . . . . . . . . . . . Cannons 1301 | . 411 890 . . . . . . . . . . . . . . . Explosions 7488 | . . 175 194 . . . 871 . . 1781 . . 1255 1270 . 1105 837 Melee 4626 | . . . . 883 . 647 723 . . 1327 . 156 . 136 . 314 440 Ramming 60 | . 19 41 . . . . . . . . . . . . . . . Kinetic 3115 | . 840 912 1363 . . . . . . . . . . . . . . Thermal 1401 | . 70 1331 . . . . . . . . . . . . . . . Explosive 7280 | . . . 194 . . . 871 . . 1748 . . 1255 1270 . 1105 837 Electromagnetic 357 | . . 324 . . . . . . . 33 . . . . . . . Impact . | . . . . . . . . . . . . . . . . . . Slashing 4626 | . . . . 883 . 647 723 . . 1327 . 156 . 136 . 314 440 Piercing . | . . . . . . . . . . . . . . . . . . Highest Corruption 6 | . 1 . . 1 1 6 . . . . . . . . . . . Average Corruption 2 | . 1 . . 1 1 4 . . . . . . . . . . . Corruption Purged . | . . . . . . . . . . . . . . . . . . Corruption Blocked 10 | . . . . . . . . . . . 10 . . . . . . Effects 28 | . 3 . . 2 . 23 . . . . . . . . . . . Message Errors 5 | . 1 . . 2 . 2 . . . . . . . . . . . Matter Fused 7 | . . . . . . 7 . . . . . . . . . . . Heat Flow Errors 4 | . 1 . . . . 3 . . . . . . . . . . . Energy Discharges 3 | . 1 . . . . 2 . . . . . . . . . . . Parts Fused 1 | . . . . . . 1 . . . . . . . . . . . Data Loss (minor) 5 | . . . . . . 5 . . . . . . . . . . . Data Loss (major) 3 | . . . . . . 3 . . . . . . . . . . . Overload Shots . | . . . . . . . . . . . . . . . . . . Overflow Damage 1462 | . 10 14 . 284 . 105 160 . . 524 . 78 3 64 . 86 134 Projectiles 24 | . 10 14 . . . . . . . . . . . . . . . Explosions 422 | . . . . . . . 42 . . 241 . . 3 13 . 6 117 Melee 1016 | . . . . 284 . 105 118 . . 283 . 78 . 51 . 80 17 Knockbacks 7 | . 7 . . . . . . . . . . . . . . . . Impact . | . . . . . . . . . . . . . . . . . . Kinetic 6 | . 6 . . . . . . . . . . . . . . . . Secondary 1 | . 1 . . . . . . . . . . . . . . . . Self-Inflicted Damage 78 | . . 36 . . . . 41 . . 1 . . . . . . . Shots 4 | . . 1 . . . . 2 . . 1 . . . . . . . Rammed 7 | . . 7 . . . . . . . . . . . . . . . Targets Rammed 13 | . 5 8 . . . . . . . . . . . . . . . Kicked 5 | . 5 . . . . . . . . . . . . . . . . Crushed 1 | . . 1 . . . . . . . . . . . . . . . Highest Temperature 220 | . 82 220 198 . . 205 18 . . 56 . 6 70 40 . 60 24 Average Temperature 60 | . 15 70 61 . . 96 10 . . 26 . 6 37 17 . 22 15 Received Heat Transfer 1248 | . 108 318 621 . . 18 81 . . 18 . 27 9 . . 48 . Siege Activations . | . . . . . . . . . . . . . . . . . . Robots Corrupted . | . . . . . . . . . . . . . . . . . . Combat Hostiles . | . . . . . . . . . . . . . . . . . . Parts Fried 1 | . . 1 . . . . . . . . . . . . . . . Impact Corruptions . | . . . . . . . . . . . . . . . . . . Robots Melted 1 | . . 1 . . . . . . . . . . . . . . . Combat Hostiles 1 | . . 1 . . . . . . . . . . . . . . . Parts Melted 4 | . . 4 . . . . . . . . . . . . . . . Heat Transferred 3136 | . 148 2988 . . . . . . . . . . . . . . . Parts Sabotaged . | . . . . . . . . . . . . . . . . . . Parts Stolen . | . . . . . . . . . . . . . . . . . . Parts Stripped . | . . . . . . . . . . . . . . . . . . Power Chain Reactions 2 | . . 2 . . . . . . . . . . . . . . . Missiles Intercepted . | . . . . . . . . . . . . . . . . . . Alert | -11 -10 -9 -8 -7 -7 -7 -6 -6 -6 -5 -5 -5 -5 -5 -5 -4 -4 ------- Run | Jun Mat Mat Mat Fac Was Fac Fac Low Low Fac Was Fac Upp Upp War Pro Fac Peak Influence 768 | . 312 724 514 333 85 260 512 . . 768 313 358 . . . . 368 Initial 268 | . . 13 242 112 85 59 17 . . . 268 219 . . . . 75 Average 234 | . 116 363 302 190 85 90 160 . . 314 286 270 . . . . 149 Maximum Alert Level 3 | . 1 3 2 1 . 1 2 . . 3 1 1 . . . . 1 Low Security (%) 46 | . 89 22 6 58 100 78 66 . . 23 . 15 . . . . 70 Level 1 38 | . 10 33 69 41 . 21 28 . . 59 100 84 . . . . 29 Level 2 14 | . . 43 24 . . . 4 . . 13 . . . . . . . Level 3 . | . . . . . . . . . . 3 . . . . . . . Level 4 . | . . . . . . . . . . . . . . . . . . Level 5 . | . . . . . . . . . . . . . . . . . . High Security . | . . . . . . . . . . . . . . . . . . Max Security . | . . . . . . . . . . . . . . . . . . Squads Dispatched 50 | . 3 3 1 8 . 5 14 . . 8 . 5 . . . 1 2 Investigation 33 | . 1 2 . 7 . 3 9 . . 5 . 4 . . . . 2 Extermination 8 | . . . . 1 . 2 3 . . 1 . 1 . . . . . Reinforcement 8 | . 2 1 1 . . . 2 . . 2 . . . . . . . Assault 1 | . . . . . . . . . . . . . . . . 1 . Garrison . | . . . . . . . . . . . . . . . . . . Intercept . | . . . . . . . . . . . . . . . . . . Searches Triggered . | . . . . . . . . . . . . . . . . . . Construction Impeded 1 | . . . . . . . 1 . . . . . . . . . . Haulers Reinforced . | . . . . . . . . . . . . . . . . . . Active Scanning Responses . | . . . . . . . . . . . . . . . . . . Cargo Convoy Interrupts . | . . . . . . . . . . . . . . . . . . Stealth | -11 -10 -9 -8 -7 -7 -7 -6 -6 -6 -5 -5 -5 -5 -5 -5 -4 -4 --------- Run | Jun Mat Mat Mat Fac Was Fac Fac Low Low Fac Was Fac Upp Upp War Pro Fac Distress Signals 16 | . 2 4 1 2 . . 2 . . 4 . 1 . . . . . Communications Jammed . | . . . . . . . . . . . . . . . . . . Distress Signals . | . . . . . . . . . . . . . . . . . . Times Spotted 273 | . 26 60 24 21 . 18 45 . . 41 6 12 5 1 . 13 1 Peak Tracking Total 13 | . 4 6 5 5 . 3 5 . . 11 6 8 5 4 . 13 2 Tactical Retreats 38 | . 1 2 . 6 . 4 13 . . 8 . 2 . 1 . 1 . Traps | -11 -10 -9 -8 -7 -7 -7 -6 -6 -6 -5 -5 -5 -5 -5 -5 -4 -4 ------- Run | Jun Mat Mat Mat Fac Was Fac Fac Low Low Fac Was Fac Upp Upp War Pro Fac Traps Triggered 11 | . 1 1 . 3 . . 3 . . 1 . 1 . . . . 1 Indirectly . | . . . . . . . . . . . . . . . . . . Trap Hack Attempts . | . . . . . . . . . . . . . . . . . . Triggered . | . . . . . . . . . . . . . . . . . . Disarmed . | . . . . . . . . . . . . . . . . . . Reprogrammed . | . . . . . . . . . . . . . . . . . . Reused . | . . . . . . . . . . . . . . . . . . Traps Extracted . | . . . . . . . . . . . . . . . . . . Installed . | . . . . . . . . . . . . . . . . . . Triggered . | . . . . . . . . . . . . . . . . . . Machines | -11 -10 -9 -8 -7 -7 -7 -6 -6 -6 -5 -5 -5 -5 -5 -5 -4 -4 ---------- Run | Jun Mat Mat Mat Fac Was Fac Fac Low Low Fac Was Fac Upp Upp War Pro Fac Machines Disabled 13 | . . 1 . 1 . . 2 . . 6 . 2 . . . . 1 Max in Single Turn 5 | . . 1 . 1 . . 1 . . 5 . 1 . . . . 1 Garrison Access 3 | . . . 1 . . 1 . . . 1 . . . . . . . Machines Repaired . | . . . . . . . . . . . . . . . . . . Machines Sabotaged . | . . . . . . . . . . . . . . . . . . Overloaded Fab Kills . | . . . . . . . . . . . . . . . . . . Hacking | -11 -10 -9 -8 -7 -7 -7 -6 -6 -6 -5 -5 -5 -5 -5 -5 -4 -4 --------- Run | Jun Mat Mat Mat Fac Was Fac Fac Low Low Fac Was Fac Upp Upp War Pro Fac Machines Accessed 109 | . 8 9 4 13 . 21 20 . . 17 . 9 1 . 4 . 3 Terminals 62 | . 7 7 2 7 . 15 12 . . 7 . 3 . . . . 2 Fabricators 21 | . . . . 5 . 2 5 . . 5 . 4 . . . . . Repair Stations 7 | . . 1 1 . . 1 1 . . 2 . 1 . . . . . Recycling Units 3 | . 1 . . . . . 1 . . 1 . . . . . . . Scanalyzers 5 | . . 1 . . . 1 1 . . 1 . 1 . . . . . Garrison Access 6 | . . . 1 1 . 2 . . . 1 . . . . . . 1 Total Hacks 376 | . 27 27 10 43 . 72 72 . . 65 . 35 2 . 13 . 10 Successful 258 | . 9 13 6 30 . 53 47 . . 54 . 27 2 . 13 . 4 Failed 117 | . 18 14 4 13 . 19 24 . . 11 . 8 . . . . 6 Catastrophic 24 | . 5 2 . 2 . 3 7 . . 1 . 2 . . . . 2 Database Lockouts 1 | . . . . . . . 1 . . . . . . . . . . Manual 211 | . 22 14 4 22 . 46 46 . . 32 . 15 . . . . 10 Terminals 200 | . 23 21 5 16 . 50 45 . . 27 . 7 . . . . 6 Fabricators 96 | . . . . 25 . 7 19 . . 26 . 19 . . . . . Repair Stations 23 | . . 2 2 . . 2 4 . . 6 . 7 . . . . . Recycling Units 7 | . 4 . . . . . 2 . . 1 . . . . . . . Scanalyzers 20 | . . 4 . . . 9 2 . . 3 . 2 . . . . . Garrison Access 15 | . . . 3 2 . 4 . . . 2 . . . . . . 4 Terminal Hacks 80 | . 3 6 2 5 . 18 14 . . 14 . 3 2 . 13 . . Record 11 | . . 1 . . . . . . . . . . 2 . 8 . . Part Schematic 13 | . . . . 3 . 3 2 . . 5 . . . . . . . Robot Analysis 4 | . 2 1 1 . . . . . . . . . . . . . . Prototype ID Bank 9 | . 1 2 . . . 1 . . . . . . . . 5 . . Level Access Points 1 | . . . . . . 1 . . . . . . . . . . . Branch Access Points 3 | . . . . . . 1 . . . 1 . 1 . . . . . Terminal Index 4 | . . . . 1 . 1 1 . . . . 1 . . . . . Fabricator Index 2 | . . . . . . 1 . . . 1 . . . . . . . Repair Station Index 1 | . . . . . . . . . . 1 . . . . . . . Unreport Threat 7 | . . 1 1 . . 1 4 . . . . . . . . . . Locate Traps 2 | . . . . . . 2 . . . . . . . . . . . Dispatch Records 3 | . . . . . . 1 1 . . 1 . . . . . . . Recall Investigation 7 | . . . . . . 2 1 . . 4 . . . . . . . Recall Extermination 7 | . . . . 1 . 2 2 . . 1 . 1 . . . . . Recall Reinforcements 1 | . . . . . . . 1 . . . . . . . . . . Hauler Manifests 3 | . . 1 . . . 2 . . . . . . . . . . . Zone Layout 2 | . . . . . . . 2 . . . . . . . . . . Fabricator Hacks 60 | . . . . 15 . 5 14 . . 17 . 9 . . . . . Network Status 4 | . . . . 1 . 1 1 . . . . 1 . . . . . Load Schematic 36 | . . . . 9 . 2 9 . . 10 . 6 . . . . . Build 20 | . . . . 5 . 2 4 . . 7 . 2 . . . . . Repair Station Hacks 22 | . . 2 2 . . 2 4 . . 6 . 6 . . . . . Scan Component 11 | . . 1 1 . . 1 2 . . 3 . 3 . . . . . Repair 11 | . . 1 1 . . 1 2 . . 3 . 3 . . . . . Recycling Unit Hacks 1 | . 1 . . . . . . . . . . . . . . . . Retrieve Components 1 | . 1 . . . . . . . . . . . . . . . . Scanalyzer 20 | . . 4 . . . 9 2 . . 3 . 2 . . . . . Insert Component 10 | . . 2 . . . 4 1 . . 2 . 1 . . . . . Analyze 10 | . . 2 . . . 5 1 . . 1 . 1 . . . . . Garrison Access Hacks 4 | . . . 2 . . 1 . . . 1 . . . . . . . Seal Access 3 | . . . 1 . . 1 . . . 1 . . . . . . . Coupler Status 1 | . . . 1 . . . . . . . . . . . . . . Unauthorized Hacks 71 | . 5 1 . 10 . 18 13 . . 13 . 7 . . . . 4 Terminals 32 | . 2 1 . 3 . 13 6 . . 5 . 1 . . . . 1 Assimilate 4 | . . . . . . 2 1 . . 1 . . . . . . . Botnet 23 | . 1 . . 2 . 11 4 . . 3 . 1 . . . . 1 Disrupt 1 | . . . . . . . 1 . . . . . . . . . . Operators 4 | . 1 1 . 1 . . . . . 1 . . . . . . . Fabricators 27 | . . . . 7 . 2 5 . . 7 . 6 . . . . . Prioritize 10 | . . . . 2 . 2 . . . 4 . 2 . . . . . Liberate 1 | . . . . 1 . . . . . . . . . . . . . Recompile 16 | . . . . 4 . . 5 . . 3 . 4 . . . . . Repair Stations . | . . . . . . . . . . . . . . . . . . Recycling Units 6 | . 3 . . . . . 2 . . 1 . . . . . . . Reject 1 | . 1 . . . . . . . . . . . . . . . . Recyclers 3 | . 1 . . . . . 1 . . 1 . . . . . . . Mask 2 | . 1 . . . . . 1 . . . . . . . . . . Scanalyzers . | . . . . . . . . . . . . . . . . . . Garrison Access 6 | . . . . . . 3 . . . . . . . . . . 3 Broadcast 2 | . . . . . . 1 . . . . . . . . . . 1 Redirect 2 | . . . . . . 1 . . . . . . . . . . 1 Watchers 2 | . . . . . . 1 . . . . . . . . . . 1 Data Cores Recovered 2 | . . 1 . . . . . . . 1 . . . . . . . Used 1 | . . 1 . . . . . . . . . . . . . . . Hacking Detections 80 | . 8 8 3 10 . 15 13 . . 13 . 7 . . . . 3 Full Trace Events 17 | . 1 2 . 3 . 3 4 . . 2 . . . . . . 2 Feedback Events 4 | . 1 . . 1 . . 1 . . . . . . . . . 1 Corruption 2 | . 1 . . 1 . . . . . . . . . . . . . Hackware Fried 2 | . . . . . . . 1 . . . . . . . . . 1 Feedback Blocked . | . . . . . . . . . . . . . . . . . . Robot Schematics Acquired . | . . . . . . . . . . . . . . . . . . Robots Built . | . . . . . . . . . . . . . . . . . . Authchips . | . . . . . . . . . . . . . . . . . . Time . | . . . . . . . . . . . . . . . . . . Total Robot Build Rating . | . . . . . . . . . . . . . . . . . . Part Schematics Acquired 22 | . . 2 . 3 . 7 3 . . 6 . 1 . . . . . Parts Built 21 | . . . . 5 . 3 4 . . 7 . 2 . . . . . Authchips 15 | . . . . 4 . 1 3 . . 5 . 2 . . . . . Time 911 | . . . . 190 . 142 176 . . 269 . 134 . . . . . Total Part Build Rating 113 | . . . . 26 . 15 24 . . 36 . 12 . . . . . Parts Repaired 11 | . . 1 1 . . 1 2 . . 3 . 3 . . . . . Time 426 | . . 26 26 . . 38 94 . . 134 . 108 . . . . . Parts Recycled . | . . . . . . . . . . . . . . . . . . Recycled Matter . | . . . . . . . . . . . . . . . . . . Retrieved Matter . | . . . . . . . . . . . . . . . . . . Retrieved Components 1 | . 1 . . . . . . . . . . . . . . . . Parts Scanalyzed 9 | . . 2 . . . 4 1 . . 1 . 1 . . . . . Part Schematics Acquired 9 | . . 2 . . . 4 1 . . 1 . 1 . . . . . Parts Damaged . | . . . . . . . . . . . . . . . . . . Bothacking | -11 -10 -9 -8 -7 -7 -7 -6 -6 -6 -5 -5 -5 -5 -5 -5 -4 -4 ------------ Run | Jun Mat Mat Mat Fac Was Fac Fac Low Low Fac Was Fac Upp Upp War Pro Fac Used RIF Installer . | . . . . . . . . . . . . . . . . . . Robots Hacked 2 | . . . . 1 . . . . . 1 . . . . . . . Non-combat 2 | . . . . 1 . . . . . 1 . . . . . . . Combat . | . . . . . . . . . . . . . . . . . . Robot Hacks Applied 2 | . . . . 1 . . . . . 1 . . . . . . . no_distress 1 | . . . . 1 . . . . . . . . . . . . . find_chute 1 | . . . . . . . . . . 1 . . . . . . . Relay Couplers Released . | . . . . . . . . . . . . . . . . . . Fabnet Peak Effective % . | . . . . . . . . . . . . . . . . . . Robots Rewired . | . . . . . . . . . . . . . . . . . . Allies Hacked . | . . . . . . . . . . . . . . . . . . Hacks Repelled . | . . . . . . . . . . . . . . . . . . Allies | -11 -10 -9 -8 -7 -7 -7 -6 -6 -6 -5 -5 -5 -5 -5 -5 -4 -4 -------- Run | Jun Mat Mat Mat Fac Was Fac Fac Low Low Fac Was Fac Upp Upp War Pro Fac Total Allies 4 | . . . . . . 2 1 . . 1 . . . . . . . Largest Group 1 | . . . . . . 1 1 . . 1 . . . . . . . Highest-Rated Group 26 | . . . . . . 26 26 . . 10 . . . . . . . Highest-Rated Ally 26 | . . . . . . 26 26 . . 10 . . . . . . . Total Orders . | . . . . . . . . . . . . . . . . . . Ally Attacks . | . . . . . . . . . . . . . . . . . . Total Damage . | . . . . . . . . . . . . . . . . . . Kills . | . . . . . . . . . . . . . . . . . . Allies Corrupted . | . . . . . . . . . . . . . . . . . . Allies Melted . | . . . . . . . . . . . . . . . . . . Intel | -11 -10 -9 -8 -7 -7 -7 -6 -6 -6 -5 -5 -5 -5 -5 -5 -4 -4 ------- Run | Jun Mat Mat Mat Fac Was Fac Fac Low Low Fac Was Fac Upp Upp War Pro Fac Robot Analysis Total 4 | . 2 1 1 . . . . . . . . . . . . . . Derelict Logs Recovered 8 | . . . . . . . . 3 1 . . . 2 1 . 1 . Drone Launches . | . . . . . . . . . . . . . . . . . . Drone Recoveries . | . . . . . . . . . . . . . . . . . . Exploration | -11 -10 -9 -8 -7 -7 -7 -6 -6 -6 -5 -5 -5 -5 -5 -5 -4 -4 ------------- Run | Jun Mat Mat Mat Fac Was Fac Fac Low Low Fac Was Fac Upp Upp War Pro Fac Turns Passed 12806 | . 1361 2630 1039 946 101 1146 2001 693 44 1477 45 549 148 159 119 151 197 Spaces Moved 15253 | 1 857 1237 466 1810 344 2103 2594 456 157 2529 144 736 362 460 416 346 235 Core 1 | . . 1 . . . . . . . . . . . . . . . Treads 1710 | . . 1236 466 8 . . . . . . . . . . . . . Legs 858 | 1 857 . . . . . . . . . . . . . . . . Wheels . | . . . . . . . . . . . . . . . . . . Hover . | . . . . . . . . . . . . . . . . . . Flight 12684 | . . . . 1802 344 2103 2594 456 157 2529 144 736 362 460 416 346 235 Fastest Speed 25 | 120 120 160 160 28 29 28 28 28 28 25 27 27 28 28 28 28 28 Average Speed 48 | 120 133 160 167 28 29 28 28 28 28 26 27 27 28 28 28 28 28 Slowest Speed 600 | 120 190 600 240 160 29 29 28 28 28 28 27 28 28 28 28 28 34 Overloaded Moves . | . . . . . . . . . . . . . . . . . . Propulsion Burnouts . | . . . . . . . . . . . . . . . . . . Robots Hopped 32 | . . . . 6 1 1 11 . . 13 . . . . . . . Cave-ins Triggered . | . . . . . . . . . . . . . . . . . . Exploration Rate (%) 53 | 1 97 90 39 27 94 51 55 49 19 58 91 31 64 70 66 57 8 Regions Visited 17 Branch Regions 6 Pre-discovered Areas 5 | . . . . . . . . 1 1 . . . . . 2 1 . Known Exits Taken 10 | . . . 1 . . 1 1 1 1 . . 1 1 1 1 1 . Unknown Exits Taken 3 | 1 1 1 . . . . . . . . . . . . . . . Scrap Searched 5 | . . . . . . . . 1 . . . . 1 3 . . . Spaces Dug 224 | . . 1 . 21 . 25 70 14 . 60 . 24 . 1 . 5 3 Terrain Destroyed 526 | . . 5 12 21 . 25 100 14 . 98 . 24 66 61 . 72 28 Melee 220 | . . 1 . 21 . 25 66 14 . 60 . 24 . 1 . 5 3 Projectile . | . . . . . . . . . . . . . . . . . . AOE 306 | . . 4 12 . . . 34 . . 38 . . 66 60 . 67 25 Terrain Rammed . | . . . . . . . . . . . . . . . . . . Walls Destroyed . | . . . . . . . . . . . . . . . . . . Machines Disabled . | . . . . . . . . . . . . . . . . . . Actions | -11 -10 -9 -8 -7 -7 -7 -6 -6 -6 -5 -5 -5 -5 -5 -5 -4 -4 --------- Run | Jun Mat Mat Mat Fac Was Fac Fac Low Low Fac Was Fac Upp Upp War Pro Fac Total 19562 | . 979 1710 617 2150 343 2586 3699 995 156 3151 149 1030 395 473 417 370 342 Wait 3269 | . 24 237 42 226 . 428 953 524 . 480 3 242 24 . 2 5 79 Move 15178 | . 856 1236 465 1798 341 2100 2571 455 156 2507 143 735 361 459 415 345 235 Hop 28 | . . . . 6 1 1 11 . . 9 . . . . . . . Pick Up 96 | . 12 30 11 8 1 2 13 . . 12 1 6 . . . . . Fast Attach 60 | . 4 14 9 5 . 4 4 . . 11 . 4 . . . . 5 Attach 41 | . . 4 4 13 . . 6 . . 7 . 5 . . . . 2 Detach 3 | . . . . . . . . . . 1 . . . . . . 2 Swap 119 | . 14 24 9 19 . 6 14 2 . 13 1 4 1 5 . 2 5 Drop 140 | . 13 54 20 18 . 6 6 . . 15 1 6 . . . . 1 Fire 253 | . 51 102 57 . . . 9 . . 7 . . 9 6 . 8 4 Melee 319 | . . 1 . 44 . 39 82 14 . 89 . 28 . 3 . 10 9 Ram . | . . . . . . . . . . . . . . . . . . Kick 5 | . 5 . . . . . . . . . . . . . . . . Crush 8 | . . 8 . . . . . . . . . . . . . . . Escape Stasis 43 | . . . . 13 . . 30 . . . . . . . . . . Rewire . | . . . . . . . . . . . . . . . . . . Trap . | . . . . . . . . . . . . . . . . . . Miscellaneous . | . . . . . . . . . . . . . . . . . . Route ------- -11/Junkyard -10/Materials (discovered 5 exits: *Mat x3 / [*Min x2]) -9/Materials (discovered 5 exits: *Mat x3 / [*Min x2]) -8/Materials (discovered 2 exits: *Fac / [*Sto]) -7/Factory -7/Waste -7/Factory (discovered 6 exits: *Fac x4 / *Low x2) -6/Factory (discovered 2 exits: *Low x2) -6/Lower Caves -6/Lower Caves -5/Factory (discovered 5 exits: *Fac x3 / *Upp x2) -5/Waste -5/Factory (discovered 3 exits: *Fac / *Upp x2) -5/Upper Caves -5/Upper Caves (discovered 2 exits: *Fac / *War) -5/Warlord -4/Proximity Caves -4/Factory (discovered 2 exits: Res x2) History --------- Turn | Location | Event 1 | -11/Junkyard | Discovered new exit (range 0) 1 | -11/Junkyard | Entered Materials 77 | -10/Materials | Discovered new exit (range 15) 315 | -10/Materials | Build established: Mutant 615 | -10/Materials | Discovered new exit (range 15) 645 | -10/Materials | Discovered new exit (range 12) 825 | -10/Materials | Discovered new exit (range 15) 992 | -10/Materials | Discovered new exit (range 8) 1362 | -10/Materials | Entered another Materials area 1362 | -9/Materials | Evolved 2 slots: Propulsion x1, Utility x1 1641 | -9/Materials | Repaired Lgt. Treads 1674 | -9/Materials | Discovered new exit (range 6) 2051 | -9/Materials | Discovered new exit (range 15) 2271 | -9/Materials | Build established: Scavenger-Mutant 3287 | -9/Materials | Discovered new exit (range 16) 3534 | -9/Materials | Discovered new exit (range 14) 3771 | -9/Materials | Build established: Mutant 3947 | -9/Materials | Discovered new exit (range 12) 3992 | -9/Materials | Entered another Materials area 3992 | -8/Materials | Evolved 2 slots: Propulsion x1, Utility x1 4120 | -8/Materials | Discovered new exit (range 6) 4400 | -8/Materials | Repaired Lgt. Treads 4652 | -8/Materials | Discovered new exit (range 8) 4880 | -8/Materials | Build established: Scavenger-Mutant 5029 | -8/Materials | Identified exit to Factory 5031 | -8/Materials | Entered Factory 5031 | -7/Factory | Evolved 2 slots: Utility x2 5131 | -7/Factory | Discovered new exit (range 8) 5133 | -7/Factory | Identified exit to Factory 5450 | -7/Factory | Fabricated Imp. Hacking Suite? 5524 | -7/Factory | Fabricated Imp. Hacking Suite? 5589 | -7/Factory | Build established: Hacker-Sprinter 5806 | -7/Factory | Fabricated Imp. System Shield? 5870 | -7/Factory | Fabricated Imp. Hacking Suite? 5913 | -7/Factory | Fabricated Imp. Powered Armor? 5977 | -7/Factory | Manually triggered Chute Trap 5977 | -7/Factory | Sucked down chute 5977 | -7/Factory | Entered Waste 5977 | -7/Waste | The area was eerily silent 6049 | -7/Waste | Discovered new exit (range 12) 6078 | -7/Waste | Identified exit to Factory 6078 | -7/Waste | Entered Factory 6100 | -7/Factory | Identified exit to Lower Caves 6340 | -7/Factory | Repaired Lgt. Deuterium Engine 6473 | -7/Factory | Fabricated Adv. Sensor Array (x1) 6833 | -7/Factory | Fabricated Adv. Signal Interpreter? 7224 | -7/Factory | Entered another Factory area 7224 | -6/Factory | Evolved 2 slots: Utility x2 7269 | -6/Factory | Discovered new exit (range 16) 7273 | -6/Factory | Identified exit to Lower Caves 7288 | -6/Factory | Imp. Hacking Suite fried by hacking feedback 7560 | -6/Factory | Fabricated Adv. Hacking Suite? 8050 | -6/Factory | Repaired Adv. Sensor Array 8096 | -6/Factory | Repaired Great Axe? 8165 | -6/Factory | Fabricated Adv. Hacking Suite? 8187 | -6/Factory | Fabricated Adv. Hacking Suite? 8872 | -6/Factory | Fabricated Adv. System Shield (x1) 8914 | -6/Factory | Central database locked down 9130 | -6/Factory | Discovered exit to Lower Caves (range 15) 9225 | -6/Factory | Entered Lower Caves 9805 | -6/Lower Caves | Learned Factory terminal intel 9848 | -6/Lower Caves | Identified exit to Lower Caves 9918 | -6/Lower Caves | Entered another Lower Caves area 9954 | -6/Lower Caves | Discovered new exit (range 11) 9957 | -6/Lower Caves | Identified exit to Factory 9962 | -6/Lower Caves | Entered Factory 9962 | -5/Factory | Evolved 2 slots: Propulsion x1, Utility x1 9963 | -5/Factory | Loaded intel: 26 terminal locations 9987 | -5/Factory | Identified exit to Upper Caves 10110 | -5/Factory | Fabricated Exp. Propulsion Shielding (x1) 10180 | -5/Factory | Fabricated Mni. Smartbomb Launcher (x1) 10241 | -5/Factory | Destroyed 9 combat bots 10266 | -5/Factory | Build established: Wizard-Sprinter 10273 | -5/Factory | Discovered new exit (range 4) 10273 | -5/Factory | Identified exit to Factory 10352 | -5/Factory | Repaired Mni. Smartbomb Launcher 10393 | -5/Factory | Repaired Exp. Propulsion Shielding 10484 | -5/Factory | Fabricated Exp. Utility Shielding? 10528 | -5/Factory | Fabricated Biomechanical Wings (x1) 10569 | -5/Factory | Fabricated Biomechanical Wings? 10571 | -5/Factory | Build established: Hacker-Sprinter 10614 | -5/Factory | Fabricated Biomechanical Wings (x1) 10686 | -5/Factory | Fabricated Biomechanical Wings? 10879 | -5/Factory | Discovered exit to Factory (range 15) 10963 | -5/Factory | Build established: Machinist-Sprinter 10990 | -5/Factory | Repaired Adv. Sensor Array 11170 | -5/Factory | Discovered exit to Factory (range 16) 11439 | -5/Factory | Manually triggered Chute Trap 11439 | -5/Factory | Sucked down chute 11439 | -5/Factory | Entered Waste 11445 | -5/Waste | Spotted C-40 Crusher 11454 | -5/Waste | EMP discharged 11466 | -5/Waste | Spotted C-40 Crusher 11466 | -5/Waste | Spotted C-40 Crusher 11467 | -5/Waste | Spotted C-40 Crusher 11467 | -5/Waste | Spotted C-40 Crusher 11475 | -5/Waste | Spotted C-40 Crusher 11475 | -5/Waste | Found Prototype Processor 11482 | -5/Waste | Discovered new exit (range 10) 11484 | -5/Waste | Identified exit to Factory 11484 | -5/Waste | Entered Factory 11487 | -5/Factory | Discovered exit to Factory (range 14) 11514 | -5/Factory | Identified Exp. Melee Analysis Suite 11565 | -5/Factory | Fabricated Biomechanical Wings (x1) 11672 | -5/Factory | Fabricated Lrn. Sensor Array (x1) 11801 | -5/Factory | Repaired Imp. Powered Armor 11842 | -5/Factory | Repaired Biomechanical Wings 11884 | -5/Factory | Repaired Exp. Propulsion Shielding 12033 | -5/Factory | Entered Upper Caves 12040 | -5/Upper Caves | Learned Factory terminal intel 12172 | -5/Upper Caves | Discovered new exit (range 13) 12174 | -5/Upper Caves | Identified exit to Upper Caves 12177 | -5/Upper Caves | Learned 8 Factory zone layouts 12179 | -5/Upper Caves | Destroyed 10 combat bots 12181 | -5/Upper Caves | Entered another Upper Caves area 12204 | -5/Upper Caves | Discovered exit to Factory (range 6) 12320 | -5/Upper Caves | Destroyed 9 combat bots 12324 | -5/Upper Caves | Learned Factory emergency access door positions 12336 | -5/Upper Caves | Discovered new exit (range 12) 12339 | -5/Upper Caves | Identified exit to Warlord 12340 | -5/Upper Caves | Entered Warlord 12409 | -5/Warlord | Learned location of Command (-1) 12409 | -5/Warlord | Learned 4 Armory zone layouts 12409 | -5/Warlord | Learned 4 Research zone layouts 12409 | -5/Warlord | Learned 4 Command zone layouts 12409 | -5/Warlord | Learned 4 Command zone layouts 12409 | -5/Warlord | Learned Factory terminal intel 12409 | -5/Warlord | Learned Armory scanalyzer intel 12456 | -5/Warlord | Discovered new exit (range 12) 12458 | -5/Warlord | Identified exit to Proximity Caves 12459 | -5/Warlord | Entered Proximity Caves 12559 | -4/Proximity Caves | Attracted the attention of an 0b10 outpost 12567 | -4/Proximity Caves | Spotted B-86 Titan 12606 | -4/Proximity Caves | Discovered exit to Factory (range 12) 12610 | -4/Proximity Caves | Entered Factory 12610 | -4/Factory | Evolved 2 slots: Utility x2 12611 | -4/Factory | Identified exit to Research 12613 | -4/Factory | Loaded intel: 28 terminal locations 12785 | -4/Factory | Destroyed 9 combat bots 12805 | -4/Factory | Adv. Hacking Suite fried by hacking feedback 12807 | -4/Factory | Self-destructed Last Messages --------------- 12783_ Acquired 73 matter. 12786_ R-10 Processor collects Field Recycling Unit. 12790_ R-10 Processor collects Hpw. Tractor Beam. 12791_ The unstable cave ceiling collapses. 12799_ R-10 Processor collects Imp. Transmission Jammer. 12800_ U-05 Engineer lays Concrete. 12801_ U-05 Engineer builds a Wall. 12801_ U-05 Engineer lays Concrete. 12802_ A-15 Conveyor destroyed. 12802_ K-01 Serf collects debris. 12802_ U-05 Engineer lays Concrete. 12804_ R-10 Processor collects Com. Wheel. 12805_ Connecting with Terminal... Feedback: Adv. Hacking Suite fried. 12805_ >> BROADCAST: Garrison Access F003 dispatching Investigation squad: 3x G-67 Veteran. 12805_ ALERT: Suspicious activity at Terminal F003. Dispatching Investigation squad. 12805_ U-05 Engineer lays Concrete. 12806_ U-05 Engineer builds a Wall. Map ----- +----------------------------------------------------+ | | | | | | | | | | | | | | | | | | | | | | | | | | | | | ??????????????????##########?????????????????????? | | ??????????????????# ????????????????????? | | ????????#########?# ! ?????????????????????? | | ######### # ????????????????????? | | + """ """ # ""????????????????????? | | # """ """ # = """???????????????????? | | # """ """ # """"??????????????????? | | + # * """"??????????????????? | | ####### # # """" ?????????????????? | | # # # "" """" #????????????????? | | / # ! ! # S"" """" #????????????????? | | # ########### "" @ #????????????????? | | !! # #?????????######+########????????????????? | | != =# #?#######???# #????????????????????? | | ! # #?# ##### #????????????????????? | | ####### ### * #????????????????????? | | ! + #????????????????????? | | """ # ### "#????????????????????? | | """ # #?# # """" "#????????????????????? | | """?+ #?####### """" "#????????????????????? | | ?###?????### """" T#????????????????????? | | ??????????# # "#????????????????????? | | ####????######## [u"""" "#????????????????????? | | ????????#! # = """" "#????????????????????? | | ????????# # """" #????????????????????? | | ????????# """ == #????????????????????? | | ????????# """ # R #????????????????????? | | ????????# """ " #????????????????????? | | ????????# ## ! "" #########+### ???????? | | ????????# """ ## t =!%! ??????? | | ????????# """ ## %!!! ??????? | | ????????# """ + % % [ ??????? | | ????????# ## *% ??????? | | ????????# """ ## #### %[ ??????? | | #???????# """ ####??### ########### ???????? | | #???????# """ #???????## ##??????????????????? | +----------------------------------------------------+ Best States ------------- Heat Dissipation 50 Coolant Potential 50 Energy Generation 18 Energy Capacity 280 Matter Stores 300 Matter Capacity 300 Sight Range 16 Robot Scan Range 18 Terrain Scan Density 10 Jamming Range 14 Corruption Block 20 Armor Coverage 400 Resistance: KI 20 Propulsion Shielding 90 Utility Shielding 90 Evasion (%) 65 Targeting Accuracy 5 Recoil Reduction 4 Offensive Hacking 54 Defensive Hacking 24 Authchip Count 2 Item Schematics ----------------- Axe | -9/Materials | Scanalyzed Hacking Suite | -9/Materials | Scanalyzed Imp. Hacking Suite | -7/Factory | Hacked Imp. Powered Armor | -7/Factory | Hacked Imp. System Shield | -7/Factory | Hacked Adv. Sensor Array | -7/Factory | Hacked Imp. Reaction Control System | -7/Factory | Hacked Adv. Signal Interpreter | -7/Factory | Hacked Imp. Propulsion Shielding | -7/Factory | Scanalyzed Imp. Utility Shielding | -7/Factory | Scanalyzed Mic. Nuclear Core | -7/Factory | Scanalyzed Mni. Grenade Launcher | -7/Factory | Scanalyzed Adv. System Restoration Module | -6/Factory | Hacked Adv. Hacking Suite | -6/Factory | Scanalyzed Adv. System Shield | -6/Factory | Hacked Mni. Smartbomb Launcher | -5/Factory | Hacked Biomechanical Wings | -5/Factory | Hacked Exp. Propulsion Shielding | -5/Factory | Hacked Exp. Utility Shielding | -5/Factory | Hacked Lrn. Sensor Array | -5/Factory | Hacked Adv. Corruption Screen | -5/Factory | Scanalyzed Exp. Melee Analysis Suite | -5/Factory | Scanalyzed Robot Schematics ------------------ None Fabricated ------------ Imp. Hacking Suite | x1 | -7/Factory | Authchip Imp. Hacking Suite | x1 | -7/Factory | Authchip Imp. System Shield | x1 | -7/Factory | Authchip Imp. Hacking Suite | x1 | -7/Factory | Authchip Imp. Powered Armor | x1 | -7/Factory Adv. Sensor Array | x1 | -7/Factory | Authchip Adv. Signal Interpreter | x2 | -7/Factory Adv. Hacking Suite | x1 | -6/Factory | Preloaded Adv. Hacking Suite | x1 | -6/Factory | Authchip Adv. Hacking Suite | x1 | -6/Factory | Authchip Adv. System Shield | x1 | -6/Factory | Authchip Exp. Propulsion Shielding | x1 | -5/Factory | Authchip Mni. Smartbomb Launcher | x1 | -5/Factory | Authchip Exp. Utility Shielding | x1 | -5/Factory | Authchip Biomechanical Wings | x1 | -5/Factory | Authchip Biomechanical Wings | x1 | -5/Factory | Authchip Biomechanical Wings | x1 | -5/Factory Biomechanical Wings | x1 | -5/Factory Biomechanical Wings | x1 | -5/Factory | Authchip Lrn. Sensor Array | x1 | -5/Factory | Authchip Alien Tech Used ----------------- None Achievements -------------- None Challenges ------------ None Game ------ Seed ThrusterDataWings Manual? 0 Play Time 01:46:56 Cumulative 841.0 hours Start 2023.03.16 @ 10:13:36 End 2023.03.16 @ 12:05:07 Sessions 1 Manual Loads 0 Difficulty Rogue Special Mode None Game No. 1262 Rogue 1262 Adventurer 0 Explorer 0 Win Type - Total 80 Types 47/1/13/14/4/0/0/1/0 Lore% 92 Gallery% 92 Achievement% 85 Wizard Run 0 Options --------- ASCII 1 Keyboard 0 Movement Numpad Keybinds 0 Fullscreen 0 Font 14/SmallcapsGlow Map View 76x50 Tactical HUD 1 Map Filters NONE Filters NONE Steam 1 RUN: 3a943c74-9032-411a-a8a4-fbac590c35c6